lending/lending_fUSD_20260310
["ID","MTS","AMOUNT","RATE_DAILY","PERIOD"]
[408157576,1773181898725,-2500.0,0.00047661,2]
[408157577,1773181898735,-349.15465966,0.00047661,2]
[408157578,1773181898744,-1100.0,0.00047661,2]
[408157579,1773181898755,-930.98055908,0.00047661,2]
[408157580,1773181898764,-1341.82399734,0.00047661,2]
[408157581,1773181898774,-491.52853459,0.00047661,2]
[408157582,1773181898783,-617.73835406,0.00047661,2]
[408157583,1773181898793,-1620.11162472,0.00047661,2]
[408157584,1773181898803,-559.640508,0.00047661,2]
[408157585,1773181898812,-1032.68662425,0.00047661,2]
[408157586,1773181898822,-372.35449995,0.00047661,2]
[408157587,1773181898831,-2249.50266023,0.00047661,2]
[408157588,1773181898841,-15113.25362921,0.00047661,2]
[408157589,1773181898850,-12496.97976749,0.00047661,2]
[408157590,1773181898859,-1874.8416955,0.00047661,2]
[408157591,1773181898869,-28391.93035583,0.00047661,2]
[408157592,1773181898878,-1141.43671725,0.00047661,2]
[408157593,1773181898887,-278.9356164,0.00047661,2]
[408157594,1773181898897,-410.94296485,0.00047661,2]
[408157595,1773181898906,-20723.11369905,0.00047661,2]
[408157596,1773181898915,-2489.92766417,0.00047661,2]
[408157597,1773181898925,-207.09699973,0.00047661,2]
[408157598,1773181898934,-881.4215273,0.00047661,2]
[408157599,1773181898943,-288.72088355,0.00047661,2]
[408157600,1773181898952,-5810.01961172,0.00047661,2]
[408157601,1773181898962,-2218.27252713,0.00047661,2]
[408157602,1773181898971,-894.49375786,0.00047661,2]
[408157603,1773181898980,-470.24279029,0.00047661,2]
[408157604,1773181898990,-150.0,0.00047661,2]
[408157605,1773181898999,-12907.56068919,0.00047661,2]
[408157606,1773181899008,-361.54396444,0.00047661,2]
[408157607,1773181899018,-203.67067138,0.00047661,2]
[408157608,1773181899027,-758.27667643,0.00047661,2]
[408157609,1773181899036,-1373.76284459,0.00047661,2]
[408157610,1773181899049,-200.74152741,0.00047661,2]
[408157611,1773181899058,-1525.03379024,0.00047661,2]
[408157612,1773181899068,-20000.0,0.00047661,2]
[408157613,1773181899077,-466.5249348,0.00047661,2]
[408157614,1773181899089,-406.99741945,0.00047661,2]
[408157615,1773181899098,-160.11612699,0.00047661,2]
[408157616,1773181899112,-1500.0,0.00047661,2]
[408157617,1773181899122,-300.0,0.00047661,21]
[408157618,1773181899132,-300.0,0.00047661,21]
[408157619,1773181899141,-300.0,0.00047661,21]
[408157620,1773181899151,-1636.5682335,0.00047661,28]
[408157621,1773181899160,-580.51786467,0.00047661,5]
[408157622,1773181899170,-1633.47999339,0.00047661,10]
[408157623,1773181899179,-2043.37169887,0.00047661,5]
[408157624,1773181899189,-734.84388614,0.00047661,10]
[408157625,1773181899199,-642.65177331,0.00047661,6]
[408157626,1773181899209,-420.64961751,0.00047661,7]
[408157627,1773181899219,-1011.58693002,0.00047661,15]
[408157628,1773181899228,-1030.15200493,0.00047661,20]
[408157629,1773181899237,-550.81443733,0.00047661,7]
[408157630,1773181899247,-425.86955198,0.00047661,7]
[408157631,1773181899256,-300.0,0.00047661,15]
[408157632,1773181899266,-1108.53010123,0.00047661,7]
[408157633,1773181899276,-1006.41035963,0.00047661,5]
[408157634,1773181899286,-1316.83718151,0.00047661,15]
[408157635,1773181899296,-600.0,0.00047661,5]
[408157636,1773181899305,-500.0,0.00047661,5]
[408157637,1773181899315,-1221.0,0.00047661,4]
[408157638,1773181899325,-1000.0,0.00047661,10]
[408157639,1773181899334,-2021.5165001,0.00047661,4]
[408157640,1773181899343,-500.0,0.00047661,10]
[408157641,1773181899353,-1074.62008832,0.00047661,7]
[408157642,1773181899363,-1661.94636477,0.00047661,18]
[408157643,1773181899372,-482.05326433,0.00047661,7]
[408157644,1773181899382,-235.54853268,0.00047661,14]
[408157645,1773181899391,-225.45139459,0.00047661,5]
[408157646,1773181899401,-234.22770792,0.00047661,15]
[408157647,1773181899411,-300.0,0.00047661,21]
[408157648,1773181899422,-1113.98960111,0.00047661,5]
[408157649,1773181899432,-225.7885933,0.00047661,7]
[408157650,1773181899442,-627.02687061,0.00047661,7]
[408157651,1773181899452,-412.97983005,0.00047661,28]
[408157652,1773181899462,-1028.41133821,0.00047661,5]
[408157653,1773181899475,-150.0,0.00047661,14]
[408157654,1773181899485,-503.19871457,0.00047661,5]
[408157655,1773181899495,-3257.10816465,0.00047661,28]
[408157656,1773181899504,-2433.74932117,0.00047661,14]
[408157657,1773181899514,-2363.72267569,0.00047661,10]
[408157658,1773181899523,-2387.12614358,0.00047661,10]
[408157659,1773181899534,-3077.9477342,0.00047661,5]
[408157660,1773181899544,-400000.0,0.00047661,7]
[408157661,1773181899554,-17125.77682891,0.00047661,20]
[408157662,1773181899563,-100000.0,0.00047661,22]
[408157663,1773181899573,-2022.72419045,0.00047661,15]
[408157664,1773181899583,-2000.0,0.00047661,7]
[408157665,1773181899593,-2654.14563198,0.00047661,20]
[408157666,1773181899603,-2335.45630786,0.00047661,7]
[408157667,1773181899612,-8642.65445471,0.00047661,2]
[408157668,1773181899622,-10000.0,0.00047661,5]
[408157669,1773181899632,-7861.66431572,0.00047661,2]
[408157670,1773181899641,-50164.08950962,0.00047661,28]
[408157671,1773181899651,-15265.69639306,0.00047661,3]
[408157672,1773181899661,-15803.52820518,0.00047661,2]
[408157673,1773181899674,-100453.55993984,0.00047661,2]
[408157674,1773181899684,-290.29371652,0.00047661,2]
[408157675,1773181899694,-2082.67339632,0.00047661,14]
[408157676,1773181899704,-562.0,0.00047661,2]
[408157677,1773181899713,-1144.3074675,0.00047661,2]
[408157678,1773181899723,-1109.54378978,0.00047661,15]
[408157679,1773181899732,-400.5102481,0.00047661,2]
[408157680,1773181899747,-500.0,0.00047661,2]
[408157681,1773181899757,-500.0,0.00047661,2]
[408157682,1773181899766,-500.0,0.00047661,2]
[408157683,1773181899775,-500.0,0.00047661,2]
[408157684,1773181899786,-500.0,0.00047661,2]
[408157685,1773181899795,-500.0,0.00047661,2]
[408157686,1773181899805,-500.0,0.00047661,2]
[408157687,1773181899815,-500.0,0.00047661,2]
[408157688,1773181899824,-500.0,0.00047661,2]
[408157689,1773181899834,-500.0,0.00047661,2]
[408157690,1773181899843,-500.0,0.00047661,2]
[408157691,1773181899853,-500.0,0.00047661,2]
[408157692,1773181899866,-165.0,0.00047661,30]
[408157693,1773181899876,-165.0,0.00047661,120]
[408157694,1773181899885,-1000.0,0.00047661,30]
[408157695,1773181899895,-1000.0,0.00047661,30]
[408157696,1773181899904,-3984.0,0.00047661,30]
[408157697,1773181899914,-3984.0,0.00047661,120]
[408157698,1773181899923,-2466.0,0.00047661,30]
[408157699,1773181899933,-2466.0,0.00047661,120]
[408157700,1773181899943,-1000.0,0.00047661,60]
[408157701,1773181899952,-150.0,0.00047661,30]
[408157702,1773181899962,-500.0,0.00047661,120]
[408157703,1773181899971,-212.5,0.00047661,30]
[408157704,1773181899982,-225.1,0.00047661,120]
[408157705,1773181899993,-1000.0,0.00047661,30]
[408157706,1773181900003,-5000.0,0.00047661,30]
[408157707,1773181900012,-171.0,0.00047661,30]
[408157708,1773181900023,-5000.0,0.00047661,120]
[408157709,1773181900034,-171.0,0.00047661,120]
[408157710,1773181900047,-364.42109016,0.00047661,120]
[408157711,1773181900061,-1334.1566562,0.00047661,120]
[408157712,1773181900071,-1000.0,0.00047661,30]
[408157713,1773181900081,-800.0,0.00047661,31]
[408157714,1773181900091,-800.0,0.00047661,31]
[408157715,1773181900101,-3045.59258422,0.00047661,30]
[408157716,1773181900110,-800.0,0.00047661,31]
[408157717,1773181900122,-341.0,0.00047661,30]
[408157718,1773181900132,-800.0,0.00047661,31]
[408157719,1773181900143,-800.0,0.00047661,31]
[408157720,1773181900153,-341.0,0.00047661,120]
[408157721,1773181900163,-800.0,0.00047661,31]
[408157722,1773181900173,-800.0,0.00047661,31]
[408157723,1773181900183,-800.0,0.00047661,31]
[408157724,1773181900194,-800.0,0.00047661,31]
[408157725,1773181900204,-200.0,0.00047661,120]
[408157726,1773181900215,-200.0,0.00047661,120]
[408157727,1773181900224,-200.0,0.00047661,120]
[408157728,1773181900235,-200.0,0.00047661,120]
[408157729,1773181900245,-200.0,0.00047661,120]
[408157730,1773181900259,-200.0,0.00047661,120]
[408157731,1773181900270,-200.0,0.00047661,120]
[408157732,1773181900280,-200.0,0.00047661,120]
[408157733,1773181900291,-200.0,0.00047661,120]
[408157734,1773181900300,-200.0,0.00047661,120]
[408157735,1773181900311,-200.0,0.00047661,120]
[408157736,1773181900321,-200.0,0.00047661,120]
[408157737,1773181900332,-200.0,0.00047661,120]
[408157738,1773181900342,-200.0,0.00047661,120]
[408157739,1773181900352,-263.81702746,0.00047661,120]
[408157740,1773181900363,-1000.0,0.00047661,60]
[408157741,1773181900373,-675.34,0.00047661,120]
[408157742,1773181900384,-675.34,0.00047661,120]
[408157743,1773181900394,-675.34,0.00047661,120]
[408157744,1773181900405,-675.34,0.00047661,120]
[408157745,1773181900415,-675.34,0.00047661,120]
[408157746,1773181900425,-675.34,0.00047661,120]
[408157747,1773181900436,-675.34,0.00047661,120]
[408157748,1773181900446,-675.34,0.00047661,120]
[408157749,1773181900456,-675.34,0.00047661,120]
[408157750,1773181900466,-675.34,0.00047661,120]
[408157751,1773181900477,-675.34,0.00047661,120]
[408157752,1773181900487,-675.34,0.00047661,120]
[408157753,1773181900498,-675.34,0.00047661,120]
[408157754,1773181900508,-675.34,0.00047661,120]
[408157755,1773181900518,-675.34,0.00047661,120]
[408157756,1773181900528,-675.34,0.00047661,120]
[408157757,1773181900539,-675.34,0.00047661,120]
[408157758,1773181900548,-675.34,0.00047661,120]
[408157759,1773181900559,-675.34,0.00047661,120]
[408157760,1773181900569,-675.34,0.00047661,120]
[408157761,1773181900579,-675.34,0.00047661,120]
[408157762,1773181900589,-675.34,0.00047661,120]
[408157763,1773181900600,-675.34,0.00047661,120]
[408157764,1773181900609,-675.4037093,0.00047661,120]
[408157765,1773181900620,-1000.0,0.00047661,60]
[408157766,1773181900630,-1000.0,0.00047661,60]
[408157767,1773181900640,-1000.0,0.00047661,30]
[408157768,1773181900651,-1000.0,0.00047661,60]
[408157769,1773181900661,-1000.0,0.00047661,30]
[408157770,1773181900671,-1000.0,0.00047661,30]
[408157771,1773181900682,-933.70978088,0.00047661,120]
[408157772,1773181900692,-4104.51132322,0.00047661,60]
[408157773,1773181900704,-1000.0,0.00047661,120]
[408157774,1773181900715,-1000.0,0.00047661,60]
[408157775,1773181900726,-4244.73982009,0.00047661,120]
[408157776,1773181900737,-1000.0,0.00047661,60]
[408157777,1773181900749,-1010.57015284,0.00047661,30]
[408157778,1773181900760,-1500.0,0.00047661,30]
[408157779,1773181900771,-1000.0,0.00047661,30]
[408157780,1773181900781,-3280.25,0.00047661,120]
[408157781,1773181900791,-3280.25,0.00047661,120]
[408157782,1773181900802,-3280.25,0.00047661,120]
[408157783,1773181900812,-3280.25,0.00047661,120]
[408157784,1773181900824,-3280.25,0.00047661,120]
[408157785,1773181900835,-3280.25,0.00047661,120]
[408157786,1773181900845,-3280.25,0.00047661,120]
[408157787,1773181900855,-3280.25,0.00047661,120]
[408157788,1773181900865,-3280.25,0.00047661,120]
[408157789,1773181900875,-3280.25,0.00047661,120]
[408157790,1773181900885,-3280.25,0.00047661,120]
[408157791,1773181900895,-3280.25,0.00047661,120]
[408157792,1773181900904,-3280.25,0.00047661,120]
[408157793,1773181900914,-3280.25,0.00047661,120]
[408157794,1773181900924,-3280.25,0.00047661,120]
[408157795,1773181900934,-3280.25,0.00047661,120]
[408157796,1773181900944,-3280.25,0.00047661,120]
[408157797,1773181900954,-3280.25,0.00047661,120]
[408157798,1773181900964,-3280.25,0.00047661,120]
[408157799,1773181900974,-3280.25,0.00047661,120]
[408157800,1773181900984,-1000.0,0.00047661,60]
[408157801,1773181900996,-3280.25,0.00047661,120]
[408157802,1773181901009,-3280.25,0.00047661,120]
[408157803,1773181901021,-3280.25,0.00047661,120]
[408157804,1773181901034,-3280.34049392,0.00047661,120]
[408157805,1773181901046,-2840.88122446,0.00047661,120]
[408157806,1773181901058,-1000.0,0.00047661,120]
[408157807,1773181901068,-1000.0,0.00047661,60]
[408157808,1773181901078,-2815.06,0.00047661,120]
[408157809,1773181901090,-2815.06,0.00047661,120]
[408157810,1773181901100,-2815.06,0.00047661,120]
[408157811,1773181901110,-2815.06,0.00047661,120]
[408157812,1773181901122,-2815.06,0.00047661,120]
[408157813,1773181901133,-2815.06,0.00047661,120]
[408157814,1773181901143,-2815.06,0.00047661,120]
[408157815,1773181901153,-2815.06,0.00047661,120]
[408157816,1773181901164,-2815.06,0.00047661,120]
[408157817,1773181901175,-2815.06,0.00047661,120]
[408157818,1773181901185,-2815.06,0.00047661,120]
[408157819,1773181901195,-2815.06,0.00047661,120]
[408157820,1773181901206,-2815.06,0.00047661,120]
[408157821,1773181901217,-2815.06,0.00047661,120]
[408157822,1773181901227,-2815.06,0.00047661,120]
[408157823,1773181901237,-2815.06,0.00047661,120]
[408157824,1773181901248,-2815.06,0.00047661,120]
[408157825,1773181901259,-2815.06,0.00047661,120]
[408157826,1773181901269,-2815.06,0.00047661,120]
[408157827,1773181901280,-2815.06,0.00047661,120]
[408157828,1773181901290,-2815.06,0.00047661,120]
[408157829,1773181901301,-2815.06,0.00047661,120]
[408157830,1773181901312,-2815.06,0.00047661,120]
[408157831,1773181901322,-2815.23996521,0.00047661,120]
[408157832,1773181901333,-1000.0,0.00047661,30]
[408157833,1773181901343,-1140.0,0.00047661,30]
[408157834,1773181901355,-1109.0,0.00047661,30]
[408157835,1773181901365,-1109.0,0.00047661,30]
[408157836,1773181901376,-1109.0,0.00047661,30]
[408157837,1773181901386,-1109.0,0.00047661,30]
[408157838,1773181901396,-2712.103812,0.00047661,30]
[408157839,1773181901407,-1109.0,0.00047661,30]
[408157840,1773181901420,-1109.72170222,0.00047661,30]
[408157841,1773181901430,-3723.06034766,0.00047661,120]
[408157842,1773181901441,-800.0,0.00047661,31]
[408157843,1773181901451,-800.0,0.00047661,31]
[408157844,1773181901462,-800.0,0.00047661,31]
[408157845,1773181901474,-800.0,0.00047661,31]
[408157846,1773181901485,-800.0,0.00047661,31]
[408157847,1773181901496,-800.0,0.00047661,31]
[408157848,1773181901506,-800.0,0.00047661,31]
[408157849,1773181901517,-800.0,0.00047661,31]
[408157850,1773181901527,-800.0,0.00047661,31]
[408157851,1773181901538,-800.0,0.00047661,31]
[408157852,1773181901549,-800.0,0.00047661,31]
[408157853,1773181901558,-800.0,0.00047661,31]
[408157854,1773181901569,-800.0,0.00047661,31]
[408157855,1773181901580,-800.0,0.00047661,31]
[408157856,1773181901590,-800.0,0.00047661,31]
[408157857,1773181901602,-800.0,0.00047661,31]
[408157858,1773181901614,-800.0,0.00047661,31]
[408157859,1773181901625,-800.0,0.00047661,31]
[408157860,1773181901635,-800.0,0.00047661,31]
[408157861,1773181901645,-800.0,0.00047661,31]
[408157862,1773181901655,-800.0,0.00047661,31]
[408157863,1773181901665,-800.0,0.00047661,31]
[408157864,1773181901676,-800.0,0.00047661,31]
[408157865,1773181901686,-800.0,0.00047661,31]
[408157866,1773181901696,-800.0,0.00047661,31]
[408157867,1773181901706,-800.0,0.00047661,31]
[408157868,1773181901718,-800.0,0.00047661,31]
[408157869,1773181901729,-800.0,0.00047661,31]
[408157870,1773181901739,-800.0,0.00047661,31]
[408157871,1773181901749,-800.0,0.00047661,31]
[408157872,1773181901760,-800.0,0.00047661,31]
[408157873,1773181901770,-800.0,0.00047661,31]
[408157874,1773181901781,-800.0,0.00047661,31]
[408157875,1773181901791,-500.0,0.00047661,30]
[408157876,1773181901801,-800.0,0.00047661,31]
[408157877,1773181901811,-800.0,0.00047661,31]
[408157878,1773181901822,-800.0,0.00047661,31]
[408157879,1773181901832,-800.0,0.00047661,31]
[408157880,1773181901842,-800.0,0.00047661,31]
[408157881,1773181901852,-800.0,0.00047661,31]
[408157882,1773181901863,-1849.18458519,0.00047661,120]
[408157883,1773181901873,-1161.03907384,0.00047661,60]
[408157884,1773181901883,-3288.10636877,0.00047661,120]
[408157885,1773181901893,-916.92327641,0.00047661,120]
[408157886,1773181901904,-200.0,0.00047661,120]
[408157887,1773181901915,-200.0,0.00047661,120]
[408157888,1773181901925,-200.0,0.00047661,120]
[408157889,1773181901935,-200.0,0.00047661,120]
[408157890,1773181901945,-200.0,0.00047661,120]
[408157891,1773181901955,-200.0,0.00047661,120]
[408157892,1773181901966,-200.0,0.00047661,120]
[408157893,1773181901977,-200.0,0.00047661,120]
[408157894,1773181901987,-200.0,0.00047661,120]
[408157895,1773181901997,-319.53902237,0.00047661,120]
[408157896,1773181902008,-2079.256542,0.00047661,90]
[408157897,1773181902019,-981.37560606,0.00047661,90]
[408157898,1773181902029,-622.29600696,0.00047661,120]
[408157899,1773181902040,-274.27991851,0.00047661,30]
[408157900,1773181902056,-1703.51860025,0.00047661,30]
[408157901,1773181902067,-2383.31428905,0.00047661,120]
[408157902,1773181902078,-360.15337026,0.00047661,30]
[408157903,1773181902091,-548.86147918,0.00047661,30]
[408157904,1773181902102,-410.36538179,0.00047661,30]
[408157905,1773181902115,-2526.73532798,0.00047661,120]
[408157906,1773181902126,-3254.9600587,0.00047661,60]
[408157907,1773181902137,-945.4385588,0.00047661,30]
[408157908,1773181902147,-1212.73458197,0.00047661,30]
[408157909,1773181902158,-3071.12444637,0.00047661,30]
[408157910,1773181902169,-2630.82919648,0.00047661,30]
[408157911,1773181902179,-3117.63097605,0.00047661,120]
[408157912,1773181902190,-2357.31024169,0.00047661,120]
[408157913,1773181902200,-2191.23734241,0.00047661,30]
[408157914,1773181902211,-679.70060087,0.00047661,120]
[408157915,1773181902221,-797.64659285,0.00047661,30]
[408157916,1773181902231,-2946.64469285,0.00047661,60]
[408157917,1773181902242,-1409.4502823,0.00047661,30]
[408157918,1773181902253,-482.6878914,0.00047661,120]
[408157919,1773181902264,-3077.86275351,0.00047661,30]
[408157920,1773181902274,-3011.24419698,0.00047661,120]
[408157921,1773181902285,-2615.78015202,0.00047661,120]
[408157922,1773181902296,-3378.86566811,0.00047661,30]
[408157923,1773181902306,-2500.0,0.00047661,30]
[408157924,1773181902317,-1519.91642652,0.00047661,30]
[408157925,1773181902328,-1610.17035852,0.00047661,120]
[408157926,1773181902338,-582.48216518,0.00047661,30]
[408157927,1773181902349,-951.97286966,0.00047661,120]
[408157928,1773181902359,-1104.53793032,0.00047661,120]
[408157929,1773181902369,-2533.85840917,0.00047661,120]
[408157930,1773181902380,-1166.03950888,0.00047661,120]
[408157931,1773181902391,-925.84251014,0.00047661,30]
[408157932,1773181902401,-747.23329037,0.00047661,30]
[408157933,1773181902411,-177.93250857,0.00047661,60]
[408157934,1773181902422,-2354.14377628,0.00047661,30]
[408157935,1773181902432,-561.21229967,0.00047661,120]
[408157936,1773181902444,-934.89106648,0.00047661,30]
[408157937,1773181902733,-538.76683068,0.00047661,30]
[408157938,1773181902744,-3474.74126028,0.00047661,90]
[408157939,1773181902753,-748.02615079,0.00047661,30]
[408157940,1773181902763,-50242.25066898,0.00047661,120]
[408157941,1773181902772,-191.60692897,0.00047661,120]
[408157942,1773181902781,-1007.46586982,0.00047661,30]
[408157943,1773181902791,-1147.97569311,0.00047661,120]
[408157944,1773181902800,-1500.34128396,0.00047661,120]
[408157945,1773181902810,-217.44356793,0.00047661,120]
[408157946,1773181902819,-394.40166918,0.00047661,120]
[408157947,1773181902829,-2081.68507053,0.00047661,30]
[408157948,1773181902839,-3343.52193446,0.00047661,120]
[408157949,1773181902848,-223.55172677,0.00047661,30]
[408157950,1773181902857,-1041.09733032,0.00047661,30]
[408157951,1773181902867,-921.43400072,0.00047661,120]
[408157952,1773181902877,-2883.22144049,0.00047661,120]
[408157953,1773181902886,-194.82717558,0.00047661,120]
[408157954,1773181902895,-741.12296084,0.00047661,120]
[408157955,1773181902904,-2455.99590924,0.00047661,120]
[408157956,1773181902913,-2772.11983183,0.00047661,30]
[408157957,1773181902922,-1083.69361851,0.00047661,120]
[408157958,1773181902932,-171.28117724,0.00047661,120]
[408157959,1773181902941,-1071.87763603,0.00047661,120]
[408157960,1773181902951,-378.26429885,0.00047661,30]
[408157961,1773181902960,-250.77034585,0.00047661,30]
[408157962,1773181902970,-506.306252,0.00047661,120]
[408157963,1773181902978,-779.24611662,0.00047661,120]
[408157964,1773181902988,-780.05690436,0.00047661,30]
[408157965,1773181902997,-444.98008565,0.00047661,120]
[408157966,1773181903006,-500.0,0.00047661,120]
[408157967,1773181903016,-1678.63449105,0.00047661,120]
[408157968,1773181903025,-150.9115631,0.00047661,30]
[408157969,1773181903035,-1140.12707451,0.00047661,120]
[408157970,1773181903049,-590.2729033,0.00047661,120]
[408157971,1773181903061,-534.2425174,0.00047661,120]
[408157972,1773181903070,-1051.34760331,0.00047661,30]
[408157973,1773181903079,-1095.88009991,0.00047661,30]
[408157974,1773181903090,-1214.01266518,0.00047661,120]
[408157975,1773181903099,-1261.31043898,0.00047661,120]
[408157976,1773181903108,-223.94964761,0.00047661,120]
[408157977,1773181903119,-1028.61306775,0.00047661,120]
[408157978,1773181903128,-3428.22084903,0.00047661,120]
[408157979,1773181903137,-177.13622199,0.00047661,120]
[408157980,1773181903147,-614.87687489,0.00047661,120]
[408157981,1773181903156,-3114.80875585,0.00047661,120]
[408157982,1773181903166,-2610.72163492,0.00047661,120]
[408157983,1773181903176,-1284.7518952,0.00047661,31]
[408157984,1773181903185,-258.50865197,0.00047661,120]
[408157985,1773181903195,-499.84205093,0.00047661,30]
[408157986,1773181903204,-1943.13178376,0.00047661,30]
[408157987,1773181903213,-1030.80281983,0.00047661,120]
[408157988,1773181903223,-4738.43678694,0.00047661,30]
[408157989,1773181903232,-997.0,0.00047661,30]
[408157990,1773181903242,-3165.24148853,0.00047661,120]
[408157991,1773181903251,-267.70390958,0.00047661,120]
[408157992,1773181903261,-1800.0,0.00047661,120]
[408157993,1773181903271,-255.72594316,0.00047661,30]
[408157994,1773181903280,-478.27635632,0.00047661,60]
[408157995,1773181903290,-192.20403824,0.00047661,120]
[408157996,1773181903300,-1818.5709517,0.00047661,120]
[408157997,1773181903310,-828.06461523,0.00047661,30]
[408157998,1773181903320,-418.8146505,0.00047661,120]
[408157999,1773181903330,-215.68348022,0.00047661,30]
[408158000,1773181903339,-841.49323272,0.00047661,120]
[408158001,1773181903349,-770.62503443,0.00047661,30]
[408158002,1773181903359,-2100.0,0.00047661,120]
[408158003,1773181903369,-956.5411583,0.00047661,30]
[408158004,1773181903379,-1295.88492324,0.00047661,120]
[408158005,1773181903388,-1345.32598747,0.00047661,30]
[408158006,1773181903398,-377.03129285,0.00047661,120]
[408158007,1773181903407,-2288.16005375,0.00047661,120]
[408158008,1773181903418,-2297.78105671,0.00047661,120]
[408158009,1773181903427,-1980.0,0.00047661,120]
[408158010,1773181903437,-3317.2395025,0.00047661,120]
[408158011,1773181903447,-1106.34917062,0.00047661,120]
[408158012,1773181903456,-268.25367419,0.00047661,120]
[408158013,1773181903466,-610.94503815,0.00047661,120]
[408158014,1773181903476,-1603.57468981,0.00047661,60]
[408158015,1773181903486,-270.44959967,0.00047661,120]
[408158016,1773181903495,-2841.11267461,0.00047661,120]
[408158017,1773181903505,-251.88648762,0.00047661,120]
[408158018,1773181903526,-465.98,0.00047661,120]
[408158019,1773181903536,-268.72778483,0.00047661,30]
[408158020,1773181903548,-1011.04348126,0.00047661,30]
[408158021,1773181903559,-5274.99869108,0.00047661,30]
[408158022,1773181903569,-986.08003665,0.00047661,120]
[408158023,1773181903579,-606.73349115,0.00047661,30]
[408158024,1773181903589,-2225.2570735,0.00047661,120]
[408158025,1773181903599,-501.0689601,0.00047661,30]
[408158026,1773181903609,-286.8875288,0.00047661,30]
[408158027,1773181903619,-2460.99316304,0.00047661,120]
[408158028,1773181903629,-2966.44452072,0.00047661,30]
[408158029,1773181903639,-557.29795609,0.00047661,30]
[408158030,1773181903648,-980.50123979,0.00047661,120]
[408158031,1773181903658,-618.11444108,0.00047661,120]
[408158032,1773181903667,-1933.41990504,0.00047661,30]
[408158033,1773181903678,-2563.75561291,0.00047661,30]
[408158034,1773181903688,-3119.31106048,0.00047661,120]
[408158035,1773181903698,-238.23736306,0.00047661,120]
[408158036,1773181903708,-3435.43786533,0.00047661,30]
[408158037,1773181903718,-512.74225992,0.00047661,120]
[408158038,1773181903728,-775.21924413,0.00047661,30]
[408158039,1773181903738,-238.8113325,0.00047661,120]
[408158040,1773181903747,-756.0,0.00047661,120]
[408158041,1773181903758,-386.97523636,0.00047661,120]
[408158042,1773181903767,-2629.49536361,0.00047661,120]
[408158043,1773181903776,-1083.77842716,0.00047661,120]
[408158044,1773181903786,-2458.95526114,0.00047661,30]
[408158045,1773181903796,-2429.47734917,0.00047661,120]
[408158046,1773181903806,-523.36211432,0.00047661,120]
[408158047,1773181903815,-6006.08872832,0.00047661,30]
[408158048,1773181903825,-182.73080605,0.00047661,120]
[408158049,1773181903834,-846.03779256,0.00047661,120]
[408158050,1773181903844,-1270.91361137,0.00047661,120]
[408158051,1773181903855,-3512.46431434,0.00047661,30]
[408158052,1773181903866,-558.6019741,0.00047661,120]
[408158053,1773181903881,-1000.18073485,0.00047661,30]
[408158054,1773181903891,-593.1107681,0.00047661,120]
[408158055,1773181903902,-1197.43374146,0.00047661,31]
[408158056,1773181903912,-1123.94816488,0.00047661,30]
[408158057,1773181903922,-3201.38842757,0.00047661,30]
[408158058,1773181903932,-1511.73763734,0.00047661,120]
[408158059,1773181903943,-370.60524944,0.00047661,120]
[408158060,1773181903954,-1131.90624129,0.00047661,120]
[408158061,1773181903964,-199.05809215,0.00047661,120]
[408158062,1773181903975,-759.99423224,0.00047661,120]
[408158063,1773181903985,-657.88903499,0.00047661,120]
[408158064,1773181903995,-5765.55656728,0.00047661,120]
[408158065,1773181904005,-1278.39022015,0.00047661,30]
[408158066,1773181904015,-2133.0198896,0.00047661,30]
[408158067,1773181904025,-1877.49684426,0.00047661,120]
[408158068,1773181904035,-1602.20696139,0.00047661,30]
[408158069,1773181904047,-1657.73476585,0.00047661,120]
[408158070,1773181904057,-277.72944008,0.00047661,120]
[408158071,1773181904067,-3707.37800621,0.00047661,30]
[408158072,1773181904077,-2626.74136538,0.00047661,120]
[408158073,1773181904088,-1230.03118547,0.00047661,120]
[408158074,1773181904098,-1131.31605477,0.00047661,120]
[408158075,1773181904108,-456.43466465,0.00047661,120]